bitfinex-derivatives/quotes_BNBF0:USTF0_20250305
["timestamp","ask_amount","ask_price","bid_price","bid_amount"]
[1741208082255,0.30786178,597.59,596.05,0.33554232]
[1741208082455,0.33468322,597.58,596.05,0.33554232]
[1741208082656,0.30786178,597.57,596.05,0.33554232]
[1741208082856,0.33469442,597.56,596.05,0.33554232]
[1741208083156,0.30786178,597.55,596.05,0.33554232]
[1741208083458,0.33470562,597.54,596.05,0.33554232]
[1741208083656,0.30786178,597.53,596.05,0.33554232]
[1741208083956,0.33471682,597.52,596.05,0.33554232]
[1741208084157,0.30786178,597.51,596.05,0.33554232]
[1741208084352,0.33472803,597.5,596.05,0.33554232]
[1741208084557,0.30786522,597.49,596.05,0.33554232]
[1741208085158,0.62635893,597.48,596.05,0.33554232]
[1741208085359,0.30786522,597.47,596.05,0.33554232]
[1741208085659,0.33475044,597.46,596.05,0.33554232]
[1741208085959,0.30785986,597.45,596.05,0.33554232]
[1741208086258,0.33476164,597.44,596.05,0.33554232]
[1741208086854,1.12176164,597.44,596.05,0.33554232]
[1741208088260,0.29162704,597.43,596.05,0.33554232]
[1741208088458,0.33477285,597.42,596.05,0.33554232]
[1741208091257,0.29162826,597.41,596.05,0.33554232]
[1741208091463,0.62640672,597.41,596.05,0.33554232]
[1741208093961,0.33477846,597.41,596.05,0.33554232]
[1741208094267,0.2916307,597.4,596.05,0.33554232]
[1741208096064,0.30786353,597.39,596.05,0.33554232]
[1741208096664,0.2916307,597.4,596.05,0.33554232]
[1741208096868,0.33477846,597.41,596.05,0.33554232]
[1741208097069,0.30787218,597.39,596.05,0.33554232]
[1741208097269,0.30787218,597.38,596.05,0.33554232]
[1741208099271,0.2916307,597.39,596.05,0.33554232]
[1741208099470,0.30786249,597.38,596.05,0.33554232]
[1741208099668,0.2916307,597.39,596.05,0.33554232]
[1741208099869,0.33477846,597.41,596.05,0.33554232]
[1741208100171,0.2916307,597.38,596.05,0.33554232]
[1741208100872,0.33480087,597.37,596.05,0.33554232]
[1741208101066,0.64273476,597.37,596.05,0.33554232]
[1741208101268,0.30793389,597.36,596.05,0.33554232]
[1741208101472,0.33481208,597.35,596.05,0.33554232]
[1741208101772,0.30793389,597.34,596.05,0.33554232]
[1741208102072,0.33482329,597.33,596.05,0.33554232]
[1741208102271,0.30793389,597.32,596.05,0.33554232]
[1741208102573,0.3348345,597.31,596.05,0.33554232]
[1741208102773,0.30793389,597.3,596.05,0.33554232]
[1741208102973,0.33484571,597.29,596.05,0.33554232]
[1741208103175,0.30793389,597.28,596.05,0.33554232]
[1741208103773,0.30793389,597.27,596.05,0.33554232]
[1741208104076,0.30793389,597.26,596.05,0.33554232]
[1741208104276,0.30793389,597.28,596.05,0.33554232]
[1741208104476,0.30793389,597.27,596.05,0.33554232]
[1741208104676,0.30793389,597.28,596.05,0.33554232]
[1741208104879,0.30793389,597.27,596.05,0.33554232]
[1741208105080,0.2916307,597.38,596.05,0.33554232]
[1741208105081,0.64279642,597.26,596.05,0.33554232]
[1741208105374,0.64280203,597.25,596.05,0.33554232]
[1741208105573,0.6428826,597.24,596.05,0.33554232]
[1741208105775,0.6428882,597.23,596.05,0.33554232]
[1741208105974,0.64289381,597.22,596.05,0.33554232]
[1741208106179,0.64289942,597.21,596.05,0.33554232]
[1741208106379,0.30800885,597.2,596.05,0.33554232]
[1741208107177,0.33489057,597.21,596.05,0.33554232]
[1741208107380,0.30795904,597.2,596.05,0.33554232]
[1741208109282,0.29170037,597.19,596.05,0.33554232]
[1741208109483,0.30795904,597.18,596.05,0.33554232]
[1741208111684,0.29170037,597.19,596.05,0.33554232]
[1741208113982,0.62660216,597.19,596.05,0.33554232]
[1741208114186,0.30796236,597.18,596.05,0.33554232]
[1741208115382,0.3079939,597.17,596.05,0.33554232]
[1741208115585,0.3079939,597.18,596.05,0.33554232]
[1741208116282,0.29175784,597.17,596.05,0.33554232]
[1741208116482,0.3079939,597.16,596.05,0.33554232]
[1741208117086,1.077,597.15,596.05,0.33554232]
[1741208117286,0.3079939,597.14,596.05,0.33554232]
[1741208124295,0.64292373,597.14,596.05,0.33554232]
[1741208124594,0.64292934,597.13,596.05,0.33554232]
[1741208124894,0.3079939,597.12,596.05,0.33554232]
[1741208125094,0.30801003,597.11,596.05,0.33554232]
[1741208125290,0.29174317,597.11,596.05,0.33554232]
[1741208125495,0.30801003,597.1,596.05,0.33554232]
[1741208126399,0.33495787,597.09,596.05,0.33554232]
[1741208126597,0.30801003,597.08,596.05,0.33554232]
[1741208127099,0.33496909,597.07,596.05,0.33554232]
[1741208127302,0.30801003,597.06,596.05,0.33554232]
[1741208127800,0.33498031,597.05,596.05,0.33554232]
[1741208127998,0.30801003,597.04,596.05,0.33554232]
[1741208128499,0.33498031,597.05,596.05,0.33554232]
[1741208131297,0.29180555,597.04,596.05,0.33554232]
[1741208131501,0.62679148,597.04,596.05,0.33554232]
[1741208132895,0.33498593,597.04,596.05,0.33554232]
[1741208134202,0.29179454,597.03,596.05,0.33554232]
[1741208135905,0.33498593,597.04,596.05,0.33554232]
[1741208137306,0.29172849,597.03,596.05,0.33554232]
[1741208138208,0.30802939,597.02,596.05,0.33554232]
[1741208139203,0.30802939,597.03,596.05,0.33554232]
[1741208139509,0.754,597.01,596.05,0.33554232]
[1741208140007,0.30803937,597.0,596.05,0.33554232]
[1741208140307,0.59981678,597.0,596.05,0.33554232]
[1741208140606,0.30803937,596.99,596.05,0.33554232]
[1741208142106,0.30803937,597.0,596.05,0.33554232]
[1741208142307,0.30803937,596.98,596.05,0.33554232]
[1741208142506,0.30803937,596.97,596.05,0.33554232]
[1741208142704,0.30803937,597.0,596.05,0.33554232]
[1741208142908,0.30803937,596.99,596.05,0.33554232]
[1741208143105,0.30803937,597.0,596.05,0.33554232]
[1741208143306,0.59981678,596.99,596.05,0.33554232]
[1741208143609,0.30803937,596.98,596.05,0.33554232]
[1741208145110,0.30803937,596.97,596.05,0.33554232]
[1741208145314,0.30803937,597.0,596.05,0.33554232]
[1741208145513,0.30803937,596.99,596.05,0.33554232]
[1741208145810,0.30803937,596.98,596.05,0.33554232]
[1741208146009,0.30803937,596.97,596.05,0.33554232]
[1741208146212,0.30803937,596.96,596.05,0.33554232]
[1741208146409,0.30803596,596.95,596.05,0.33554232]
[1741208146610,0.30803596,596.94,596.05,0.33554232]
[1741208146810,0.30803596,596.93,596.05,0.33554232]
[1741208147011,0.30803596,596.92,596.05,0.33554232]
[1741208147214,0.30803596,596.97,596.05,0.33554232]
[1741208147414,0.29178353,596.98,596.05,0.33554232]
[1741208147615,0.30803596,596.97,596.05,0.33554232]
[1741208148016,0.754,597.01,596.05,0.33554232]
[1741208148212,0.30802324,597.0,596.05,0.33554232]
[1741208149119,0.29177007,596.99,596.05,0.33554232]
[1741208149312,0.30802324,596.98,596.05,0.33554232]
[1741208149617,0.29177007,596.99,596.05,0.33554232]
[1741208149817,0.30802382,596.98,596.05,0.33554232]
[1741208151016,0.754,597.01,596.05,0.33554232]
[1741208152121,0.29174683,597.0,596.05,0.33554232]
[1741208153923,0.754,597.01,596.05,0.33554232]
[1741208155223,0.29175417,597.0,596.05,0.33554232]
[1741208156926,0.754,597.01,596.05,0.33554232]
[1741208158127,0.29173827,597.0,596.05,0.33554232]
[1741208158723,0.29173827,597.0,596.1,1.24569908]
[1741208159925,0.754,597.01,596.1,1.24569908]
[1741208161227,0.29171137,597.0,596.1,1.24569908]
[1741208161829,0.29171137,597.0,596.11,1.24569908]
[1741208162029,0.754,597.01,596.11,1.24569908]
[1741208163229,0.754,597.01,596.05,0.33554232]
[1741208176144,0.754,597.01,596.13,1.24569908]
[1741208180241,0.754,597.01,596.14,1.24569908]
[1741208181946,0.29171871,597.0,596.14,1.24569908]
[1741208183046,0.29171871,597.0,596.12,1.24569908]
[1741208183846,0.754,597.01,596.12,1.24569908]
[1741208184149,0.29174317,596.99,596.12,1.24569908]
[1741208185648,0.29174317,596.99,596.05,1.5812414]
[1741208186945,0.754,597.01,596.05,1.5812414]
[1741208187746,0.30802584,597.0,596.05,1.5812414]
[1741208187948,0.30802584,597.0,596.05,0.33554232]
[1741208188247,0.29175662,596.99,596.05,0.33554232]
[1741208189947,0.754,597.01,596.05,0.33554232]
[1741208190143,0.30803225,597.0,596.05,0.33554232]
[1741208191348,0.29178108,596.99,596.05,0.33554232]
[1741208193050,0.33498593,597.04,596.05,0.33554232]
[1741208193250,0.30803188,597.03,596.05,0.33554232]
[1741208194149,0.29178108,597.02,596.05,0.33554232]
[1741208194351,0.30803188,597.01,596.05,0.33554232]
[1741208194848,0.30803143,597.0,596.05,0.33554232]
[1741208195049,0.29178108,597.02,596.05,0.33554232]
[1741208195649,1.034,597.01,596.05,0.33554232]
[1741208197248,0.29177741,597.0,596.05,0.33554232]
[1741208201957,1.034,597.01,596.05,0.33554232]
[1741208202255,0.29174928,596.99,596.05,0.33554232]
[1741208205063,1.034,597.01,596.05,0.33554232]
[1741208205263,0.29174683,596.98,596.05,0.33554232]
[1741208207958,1.034,597.01,596.05,0.33554232]
[1741208209265,0.29174561,597.0,596.05,0.33554232]
[1741208210966,1.034,597.01,596.05,0.33554232]
[1741208211966,0.33498593,597.04,596.05,0.33554232]
[1741208212266,0.29174317,597.0,596.05,0.33554232]
[1741208214866,0.685,596.99,596.05,0.33554232]
[1741208217275,0.29173827,596.98,596.05,0.33554232]
[1741208219975,0.685,596.99,596.05,0.33554232]
[1741208220475,0.30799957,596.98,596.05,0.33554232]
[1741208220775,0.30799957,596.98,596.07,1.24569908]
[1741208221277,0.29175173,596.97,596.07,1.24569908]
[1741208222277,0.29175173,596.97,596.05,0.33554232]
[1741208222977,0.685,596.99,596.05,0.33554232]
[1741208224279,0.29177986,596.98,596.05,0.33554232]
[1741208225976,0.685,596.99,596.05,0.33554232]
[1741208227277,0.29177986,596.98,596.05,0.33554232]
[1741208228977,0.685,596.99,596.05,0.33554232]
[1741208230179,0.29177863,596.98,596.05,0.33554232]
[1741208231280,0.30802387,596.97,596.05,0.33554232]
[1741208232280,0.30802387,596.98,596.05,0.33554232]
[1741208232480,0.30802387,596.97,596.05,0.33554232]
[1741208232780,0.30802387,596.96,596.05,0.33554232]
[1741208232980,0.30802387,596.98,596.05,0.33554232]
[1741208233181,0.29175539,596.96,596.05,0.33554232]
[1741208233476,0.30802918,596.95,596.05,0.33554232]
[1741208234482,0.29175539,596.96,596.05,0.33554232]
[1741208236782,0.29175539,596.96,596.03,1.24569908]
[1741208236982,0.29175539,596.96,595.95,0.29177374]
[1741208237984,0.685,596.99,595.77,1.24569908]
[1741208238179,1.02001398,596.99,595.77,1.24569908]
[1741208238484,0.29182635,596.98,595.78,0.29182635]
[1741208238783,0.33502521,596.97,595.78,0.29182635]
[1741208239183,0.33502521,596.97,595.84,1.24569908]
[1741208241485,0.33502521,596.97,595.78,0.29182635]
[1741208242584,0.308146,596.96,595.78,0.29182635]
[1741208243486,0.33503643,596.95,595.78,0.29182635]
[1741208243787,0.308146,596.94,595.78,0.29182635]
[1741208243981,0.33504766,596.93,595.39,1.24569908]
[1741208244183,0.308146,596.92,595.41,0.33590299]
[1741208244385,0.33505888,596.91,595.41,0.33590299]
[1741208244586,0.308146,596.9,595.41,0.33590299]
[1741208244785,0.64323298,596.89,595.41,0.33590299]
[1741208244984,0.685,596.99,595.41,0.33590299]
[1741208244985,0.64323859,596.88,595.41,0.33590299]
[1741208245183,0.64324421,596.87,595.42,0.29190835]
[1741208245386,0.30816287,596.86,595.57,1.24569908]
[1741208245587,0.64324982,596.86,595.58,0.33580711]
[1741208245788,0.64325543,596.85,595.58,0.33580711]
[1741208245990,0.30816287,596.84,595.58,0.33580711]
[1741208246891,0.33510379,596.83,595.58,0.33580711]
[1741208247093,0.30816287,596.82,595.58,0.33580711]
[1741208247386,0.33511502,596.81,595.58,0.33580711]
[1741208247592,0.30816287,596.8,595.58,0.33580711]
[1741208247792,0.33512625,596.79,595.58,0.33580711]
[1741208248194,0.30819233,596.78,595.58,0.33580711]
[1741208248387,0.33513749,596.77,595.58,0.33580711]
[1741208248589,0.30819233,596.76,595.58,0.33580711]
[1741208248891,0.33514872,596.75,595.58,0.33580711]
[1741208249088,0.30819233,596.74,595.58,0.33580711]
[1741208249493,0.33515995,596.73,595.58,0.33580711]
[1741208250494,0.60014638,596.72,595.58,0.33580711]
[1741208250693,0.30820252,596.71,595.58,0.33580711]
[1741208250993,0.29194386,596.72,595.58,0.33580711]
[1741208251294,0.33517118,596.71,595.58,0.33580711]
[1741208251494,0.30820091,596.7,595.58,0.33580711]
[1741208251692,0.33518242,596.69,595.58,0.33580711]
[1741208253197,0.29196223,596.68,595.58,0.33580711]
[1741208254394,0.62715027,596.68,595.58,0.33580711]
[1741208256098,0.33518804,596.68,595.58,0.33580711]
[1741208257295,0.29195366,596.67,595.58,0.33580711]
[1741208258994,0.33518804,596.68,595.58,0.33580711]
[1741208259198,0.29195978,596.66,595.58,0.33580711]
[1741208260901,0.33520489,596.65,595.58,0.33580711]
[1741208269309,0.29185204,596.64,595.58,0.33580711]
[1741208271007,0.751,596.63,595.58,0.33580711]
[1741208274209,0.29195978,596.62,595.58,0.33580711]
[1741208277111,0.751,596.63,595.58,0.33580711]
[1741208278313,0.29198795,596.62,595.58,0.33580711]
[1741208279413,0.29198795,596.62,595.59,1.24569908]
[1741208280014,0.751,596.63,595.59,1.24569908]
[1741208280214,0.29195733,596.61,595.59,1.24569908]
[1741208280913,0.29195733,596.61,595.61,1.24569908]
[1741208283116,0.751,596.63,595.61,1.24569908]
[1741208283516,0.751,596.63,595.59,1.24569908]
[1741208283917,0.29192304,596.62,595.59,1.53762212]
[1741208285816,0.29192304,596.62,595.59,0.29192304]
[1741208286019,0.751,596.63,595.58,0.33580711]
[1741208286327,0.29194631,596.61,595.59,0.29194631]
[1741208291925,0.29194631,596.61,595.58,0.33580711]
[1741208292128,0.751,596.63,595.58,0.33580711]
[1741208292328,0.29194631,596.6,595.59,0.29194631]
[1741208295034,0.751,596.63,595.59,1.24569908]
[1741208296333,0.29194508,596.62,595.59,1.53764416]
[1741208296933,0.29194508,596.62,595.59,0.29194508]
[1741208298033,0.751,596.63,595.58,1.58150619]
[1741208298735,0.751,596.63,595.58,0.33580711]
[1741208299230,0.29196713,596.62,595.59,0.29196713]
[1741208301038,0.751,596.63,595.58,0.33580711]
[1741208302238,0.29197325,596.62,595.59,0.29197325]
[1741208304038,0.751,596.63,595.58,0.33580711]
[1741208304338,0.29194631,596.61,595.58,0.33580711]
[1741208305338,0.29194631,596.61,595.59,0.29195121]
[1741208307134,0.33520489,596.65,595.58,0.33580711]
[1741208307338,0.781,596.6,595.58,0.33580711]
[1741208308339,0.29201368,596.59,595.59,0.29201368]
[1741208310041,0.781,596.6,595.58,0.33580711]
[1741208310432,0.29194753,596.58,595.59,0.29194753]
[1741208312541,0.29194753,596.58,595.67,1.24569908]
[1741208313038,0.781,596.6,595.67,1.24569908]
[1741208314444,0.29192427,596.59,595.67,1.24569908]
[1741208317048,0.29192427,596.59,595.64,0.29192427]
[1741208319049,0.781,596.6,595.63,1.24569908]
[1741208319345,0.29192917,596.58,595.64,0.29192917]
[1741208322050,0.781,596.6,595.58,0.33580711]
[1741208322245,0.29193529,596.57,595.64,0.29193529]
[1741208326747,0.29193529,596.57,595.65,0.33576764]
[1741208328053,0.33520489,596.65,595.65,0.33576764]
[1741208328955,0.33520489,596.65,595.75,1.24569908]
[1741208329356,0.29183124,596.64,595.75,1.24569908]
[1741208329653,1.02783124,596.64,595.75,1.24569908]
[1741208330955,1.02783124,596.64,595.65,0.33576764]
[1741208331150,0.736,596.64,595.65,0.33576764]
[1741208332256,0.29193161,596.63,595.65,0.33576764]
[1741208334053,0.736,596.64,595.65,0.33576764]
[1741208335355,0.29194631,596.63,595.65,0.33576764]
[1741208340056,0.736,596.64,595.65,0.33576764]
[1741208341258,0.29194998,596.63,595.65,0.33576764]
[1741208343060,0.736,596.64,595.65,0.33576764]
[1741208343267,0.29192549,596.62,595.65,0.33576764]
[1741208345464,0.736,596.64,595.65,0.33576764]
[1741208380500,0.2917823,597.27,595.65,0.33576764]
[1741208382104,0.70992275,599.29,595.65,0.33576764]
[1741208382299,0.33400691,598.79,595.65,0.33576764]
[1741208382505,0.29151344,597.26,595.65,0.33576764]
[1741208382707,0.33400691,598.79,595.65,0.33576764]
[1741208382903,0.30789614,598.78,595.65,0.33576764]
[1741208383106,0.33409618,598.63,595.65,0.33576764]
[1741208383302,0.30789614,598.62,595.65,0.33576764]
[1741208383608,0.33417992,598.48,595.65,0.33576764]
[1741208383806,0.30789614,598.47,595.65,0.33576764]
[1741208384107,0.3342637,598.33,595.65,0.33576764]
[1741208384308,0.30787835,598.32,595.65,0.33576764]
[1741208384509,0.33434193,598.19,595.65,0.33576764]
[1741208384703,0.30787835,598.18,595.65,0.33576764]
[1741208384905,0.3344146,598.06,595.65,0.33576764]
[1741208385103,0.30787835,598.05,595.65,0.33576764]
[1741208385303,0.33448731,597.93,595.65,0.33576764]
[1741208385508,0.30787835,597.92,595.65,0.33576764]
[1741208385815,0.33454886,597.82,595.65,0.33576764]
[1741208386104,0.30786952,597.81,595.65,0.33576764]
[1741208386309,0.33456565,597.79,595.65,0.33576764]
[1741208386510,0.30786952,597.78,595.65,0.33576764]
[1741208386712,0.33458244,597.76,595.65,0.33576764]
[1741208386910,0.30786952,597.75,595.65,0.33576764]
[1741208387210,0.33459923,597.73,595.65,0.33576764]
[1741208387411,0.30786952,597.72,595.65,0.33576764]
[1741208387612,1.50122611,597.51,595.86,1.24569908]
[1741208388007,0.33472803,597.5,595.88,0.33563804]
[1741208389213,0.29161115,597.49,595.88,0.33563804]
[1741208390921,0.33473923,597.48,595.88,0.33563804]
[1741208392330,0.29156839,597.47,595.88,0.33563804]
[1741208393732,0.62631323,597.47,595.88,0.33563804]
[1741208394427,0.33475044,597.46,595.88,0.33563804]
[1741208397535,0.30788731,597.45,595.88,0.33563804]
[1741208398235,0.29172238,597.44,595.88,0.33563804]
[1741208398530,0.30788731,597.43,595.88,0.33563804]
[1741208399235,0.30787771,597.42,595.88,0.33563804]
[1741208399435,0.30787771,597.41,595.88,0.33563804]
[1741208399734,0.30787771,597.4,595.88,0.33563804]
[1741208399930,0.30787771,597.43,595.88,0.33563804]
[1741208400134,0.33475044,597.46,595.88,0.33563804]
[1741208401233,0.29159771,597.45,595.88,0.33563804]
[1741208401839,0.33476164,597.44,595.88,0.33563804]
[1741208403338,0.33476164,597.44,596.0,1.24569908]
[1741208403639,0.33476164,597.44,596.01,0.33556483]
[1741208404237,0.29158916,597.43,596.01,0.33556483]
[1741208404439,0.62635641,597.43,596.01,0.33556483]
[1741208404639,0.33477285,597.42,596.01,0.33556483]
[1741208405138,0.30788954,597.41,596.01,0.33556483]
[1741208405440,0.33478406,597.4,596.01,0.33556483]
[1741208405638,0.30788954,597.39,596.01,0.33556483]
[1741208405939,0.33479527,597.38,596.01,0.33556483]
[1741208406139,0.30788954,597.37,596.01,0.33556483]
[1741208406340,0.33480648,597.36,596.01,0.33556483]
[1741208406541,0.30788954,597.35,596.01,0.33556483]
[1741208406840,0.64273199,597.34,596.01,0.33556483]
[1741208407042,0.64273759,597.33,596.01,0.33556483]
[1741208407236,0.6427432,597.32,596.01,0.33556483]
[1741208407439,0.6427488,597.31,596.01,0.33556483]
[1741208407641,0.64275441,597.3,596.01,0.33556483]
[1741208407941,0.64276001,597.29,596.01,0.33556483]
[1741208408140,0.3079143,597.28,596.01,0.33556483]
[1741208408541,0.33485693,597.27,596.01,0.33556483]
[1741208410142,0.30792314,597.26,596.01,0.33556483]
[1741208410342,0.33486814,597.25,596.01,0.33556483]
[1741208410942,0.30792169,597.24,596.01,0.33556483]
[1741208411840,0.30792211,597.23,596.01,0.33556483]
[1741208412036,0.30792211,597.24,596.01,0.33556483]
[1741208412241,0.33487935,597.23,596.01,0.33556483]
[1741208412636,0.30792916,597.22,596.01,0.33556483]
[1741208412941,0.33489057,597.21,596.01,0.33556483]
[1741208413442,0.30793429,597.2,596.01,0.33556483]
[1741208413642,0.33490179,597.19,596.01,0.33556483]
[1741208418443,0.29170037,597.18,596.01,0.33556483]
[1741208422747,0.30794508,597.17,596.01,0.33556483]
[1741208423148,0.33491861,597.16,596.01,0.33556483]
[1741208423448,0.30794508,597.15,596.01,0.33556483]
[1741208423948,0.6428693,597.15,596.01,0.33556483]
[1741208424148,0.30794508,597.14,596.01,0.33556483]
[1741208424649,0.33493544,597.13,596.01,0.33556483]
[1741208424948,0.30794508,597.12,596.01,0.33556483]
[1741208425244,0.33494665,597.11,596.01,0.33556483]
[1741208425449,0.30794508,597.1,596.01,0.33556483]
[1741208425948,0.33494665,597.11,596.01,0.33556483]
[1741208426950,0.30799842,597.1,596.01,0.33556483]
[1741208427153,0.64295068,597.1,596.01,0.33556483]
[1741208427346,0.30799842,597.09,596.01,0.33556483]
[1741208428250,0.29179087,597.08,596.01,0.33556483]
[1741208428450,0.62675435,597.08,596.01,0.33556483]
[1741208429251,0.30800853,597.07,596.01,0.33556483]
[1741208429551,0.3349747,597.06,596.01,0.33556483]
[1741208429851,0.30800853,597.05,596.01,0.33556483]
[1741208430146,0.64298884,597.05,596.01,0.33556483]
[1741208430350,0.30800853,597.04,596.01,0.33556483]
[1741208431253,0.29182635,597.03,596.01,0.33556483]
[1741208431651,0.29182635,597.03,595.62,1.24569908]
[1741208431851,0.29182635,597.03,595.31,2.5433023]
[1741208431852,0.30813113,597.02,595.75,1.24569908]
[1741208432453,0.30813113,597.02,595.76,0.2918496]
[1741208433656,0.29182635,597.03,595.76,0.2918496]
[1741208433953,0.30813101,597.02,595.76,0.2918496]
[1741208434555,0.33500276,597.01,595.76,0.2918496]
[1741208434757,0.30813101,597.0,595.76,0.2918496]
[1741208434958,0.64315164,596.99,595.76,0.2918496]
[1741208435254,0.30813766,596.98,595.76,0.2918496]
[1741208436252,0.30813766,596.98,595.63,0.33577892]
[1741208436759,0.33502521,596.97,595.63,0.33577892]
[1741208436958,0.30813766,596.96,595.63,0.33577892]
[1741208437160,0.30813766,596.96,595.64,0.29190958]
[1741208437359,0.33503643,596.95,595.64,0.29190958]
[1741208437760,0.33503643,596.95,595.65,0.33576764]
[1741208441862,0.3081088,596.94,595.65,0.33576764]
[1741208442061,0.33504766,596.93,595.65,0.33576764]
[1741208443464,0.29185939,596.92,595.65,0.33576764]
[1741208444264,0.33505888,596.91,595.65,0.33576764]
[1741208446169,0.30812323,596.9,595.65,0.33576764]
[1741208446665,0.33507011,596.89,595.65,0.33576764]
[1741208446872,0.30812323,596.88,595.65,0.33576764]
[1741208447270,0.33508134,596.87,595.65,0.33576764]
[1741208447467,0.30812323,596.86,595.65,0.33576764]
[1741208448372,0.33508134,596.87,595.65,0.33576764]
[1741208449371,0.30813557,596.86,595.65,0.33576764]
[1741208450075,0.33509256,596.85,595.65,0.33576764]
[1741208450272,0.30813557,596.84,595.65,0.33576764]
[1741208450468,0.64323375,596.84,595.65,0.33576764]
[1741208450669,0.30813557,596.83,595.65,0.33576764]
[1741208451374,0.33509818,596.84,595.65,0.33576764]
[1741208451573,0.30814927,596.83,595.65,0.33576764]
[1741208453678,0.29188876,596.82,595.65,0.33576764]
[1741208453874,0.30814927,596.81,595.65,0.33576764]
[1741208454077,0.29188876,596.82,595.65,0.33576764]
[1741208454278,0.33509818,596.84,595.65,0.33576764]
[1741208454578,0.30813109,596.83,595.65,0.33576764]
[1741208454779,0.33509818,596.84,595.65,0.33576764]
[1741208455583,0.29186061,596.83,595.65,0.33576764]
[1741208460089,0.33509818,596.84,595.65,0.33576764]
[1741208460490,0.33509818,596.84,595.67,1.24569908]
[1741208461387,0.29184837,596.83,595.67,1.24569908]
[1741208461892,0.29184837,596.83,595.65,0.62761601]
[1741208463190,0.33509818,596.84,595.65,0.33576764]
[1741208464292,0.29183981,596.83,595.65,0.62760745]
[1741208466294,0.33509818,596.84,595.65,0.33576764]
[1741208466489,0.33509818,596.84,595.73,1.24569908]
[1741208467397,0.29175539,596.83,595.73,1.24569908]
[1741208468498,0.29175539,596.83,595.68,0.29175539]
[1741208469197,0.95875539,596.83,595.68,0.29175539]
[1741208470094,0.33510941,596.82,595.68,0.29175539]
[1741208470896,0.30812847,596.81,595.68,0.29175539]
[1741208471094,0.64324349,596.81,595.68,0.29175539]
[1741208471293,0.30812847,596.8,595.68,0.29175539]
[1741208471694,0.33511502,596.81,595.68,0.29175539]
[1741208471891,0.30814451,596.8,595.81,1.24569908]
[1741208473298,0.29187897,596.79,595.81,1.24569908]
[1741208473498,0.30814451,596.78,595.81,1.24569908]
[1741208474105,0.29187897,596.79,595.81,1.24569908]
[1741208474298,0.29187897,596.79,595.7,0.29187897]
[1741208475101,0.33511502,596.81,595.65,0.33576764]
[1741208476301,0.29188754,596.8,595.66,0.29188754]
[1741208478099,0.33511502,596.81,595.65,0.33576764]
[1741208478499,0.29188876,596.79,595.66,0.29188876]
[1741208481199,0.33511502,596.81,595.65,0.33576764]
[1741208481399,0.29188876,596.78,595.66,0.29188876]
[1741208484206,0.33511502,596.81,595.65,0.33576764]
[1741208485404,0.29189611,596.8,595.66,0.29189611]
[1741208487205,0.33511502,596.81,595.65,0.33576764]
[1741208488412,0.29189244,596.8,595.66,0.29189244]
[1741208493110,0.33511502,596.81,595.65,0.33576764]
[1741208493414,0.29188387,596.79,595.65,0.33576764]
[1741208494415,0.29188387,596.79,595.66,0.29189856]
[1741208496316,0.33511502,596.81,595.65,0.33576764]
[1741208496620,0.29188387,596.78,595.66,0.29188387]
[1741208499120,0.33511502,596.81,595.65,0.33576764]
[1741208499919,0.29190345,596.8,595.66,0.29190345]
[1741208502122,0.33511502,596.81,595.65,0.33576764]
[1741208502519,0.33511502,596.81,595.66,0.29182757]
[1741208502520,0.29182757,596.8,595.66,0.29182757]
[1741208503323,0.638,596.79,595.66,0.29182757]
[1741208505225,0.638,596.79,595.65,0.33576764]
[1741208506526,0.29187285,596.78,595.66,0.29187285]
[1741208506725,0.29187285,596.78,595.67,0.33575637]
[1741208508125,0.638,596.79,595.67,0.33575637]
[1741208508425,0.29186061,596.77,595.67,0.33575637]
[1741208511139,0.638,596.79,595.67,0.33575637]
[1741208511537,0.29188142,596.78,595.67,0.33575637]
[1741208514139,0.638,596.79,595.67,0.33575637]
[1741208514443,0.2918704,596.77,595.67,0.33575637]
[1741208517146,0.638,596.79,595.67,0.33575637]
[1741208518549,0.29189121,596.78,595.73,1.24569908]
[1741208520149,0.638,596.79,595.73,1.24569908]
[1741208520449,0.638,596.79,595.67,0.33575637]
[1741208521350,0.29188509,596.78,595.67,0.33575637]
[1741208523150,0.638,596.79,595.67,0.33575637]
[1741208524355,0.29187775,596.78,595.67,0.33575637]
[1741208525157,0.29187775,596.78,595.67,1.58145545]
[1741208526159,0.638,596.79,595.67,1.58145545]
[1741208526757,0.638,596.79,595.69,1.24569908]
[1741208526956,0.638,596.79,595.7,0.33573946]
[1741208527552,0.29185204,596.78,595.7,0.33573946]
[1741208528859,0.29185204,596.78,595.75,1.24569908]
[1741208529053,0.29185204,596.78,595.76,0.33570565]
[1741208529357,0.638,596.79,595.76,0.33570565]
[1741208530565,0.29183246,596.78,595.76,0.33570565]
[1741208531161,0.29183246,596.78,595.82,1.24569908]
[1741208532161,0.638,596.79,595.82,1.24569908]
[1741208533463,0.29184593,596.78,595.82,1.24569908]
[1741208534164,0.29184593,596.78,595.76,0.33570565]
[1741208535170,0.638,596.79,595.76,0.33570565]
[1741208535666,0.30813755,596.78,595.76,0.33570565]
[1741208535973,0.638,596.79,595.76,0.33570565]